lending/lending_fUSD_20251106
["ID","MTS","AMOUNT","RATE_DAILY","PERIOD"]
[393292498,1762427432310,-151.0,0.00015673,2]
[393292500,1762427432319,-250.0,0.00015678,2]
[393292502,1762427432328,-151.0,0.0001568,2]
[393292504,1762427432337,-151.0,0.00015688,2]
[393292505,1762427432346,-257.65701278,0.0001569,2]
[393292507,1762427432357,-103.69923737,0.0001569,2]
[393292509,1762427432366,-287.81,0.00015698,2]
[393292511,1762427432375,-287.81,0.00015972,2]
[393292512,1762427432384,-287.82,0.00016246,2]
[393292514,1762427432394,-300.0,0.00016262,2]
[393292515,1762427432403,-300.0,0.00016262,2]
[393292516,1762427432412,-300.0,0.00016262,2]
[393292517,1762427432423,-1200.0,0.00016262,2]
[393292518,1762427432432,-1000.0,0.00016263,2]
[393292520,1762427432441,-2500.0,0.00016263,2]
[393292521,1762427432450,-3447.0889,0.00016263,2]
[393292522,1762427432460,-260.10859736,0.0001628,2]
[393292523,1762427432469,-550.0,0.00016352,2]
[393292524,1762427432478,-151.0,0.00016353,2]
[393292525,1762427432487,-151.0,0.00016353,2]
[393292526,1762427432496,-151.0,0.00016353,2]
[393292527,1762427432506,-151.0,0.00016353,2]
[393292528,1762427432516,-151.0,0.00016353,2]
[393292530,1762427432525,-151.0,0.00016353,2]
[393292532,1762427432535,-151.0,0.00016353,2]
[393292533,1762427432544,-151.0,0.00016353,2]
[393292535,1762427432554,-151.0,0.00016353,2]
[393292536,1762427432563,-151.0,0.00016353,2]
[393292538,1762427432573,-151.0,0.00016353,2]
[393292540,1762427432582,-151.0,0.00016353,2]
[393292541,1762427432591,-151.0,0.00016353,2]
[393292542,1762427432599,-151.0,0.00016353,2]
[393292543,1762427432608,-151.0,0.00016353,2]
[393292544,1762427432618,-151.0,0.00016353,2]
[393292547,1762427432627,-151.0,0.00016353,2]
[393292550,1762427432635,-151.0,0.00016353,2]
[393292552,1762427432644,-151.0,0.00016353,2]
[393292553,1762427432653,-151.0,0.00016353,2]
[393292554,1762427432662,-500.0,0.00016363,2]
[393292555,1762427432672,-500.0,0.00016363,2]
[393292556,1762427432682,-20147.54159127,0.00016363,2]
[393292557,1762427432693,-72101.93026119,0.00016363,2]
[393292558,1762427432709,-1032.9,0.00016363,2]
[393292559,1762427432720,-516.0670987,0.00016363,2]
[393292561,1762427434315,500.0,0.00038696,120]
[393292562,1762427434888,500.0,0.00038696,120]
[393292563,1762427435124,500.0,0.00038696,120]
[393292564,1762427435377,500.0,0.00038696,120]
[393292565,1762427435613,500.0,0.00038696,120]
[393292567,1762427435842,500.0,0.00038696,120]
[393292568,1762427436088,500.0,0.00038696,120]
[393292569,1762427436174,500.0,0.00038696,120]
[393292570,1762427436279,505.6383354,0.00038696,120]
[393292571,1762427436369,500.0,0.00038696,120]
[393292572,1762427436556,500.0,0.00038696,120]
[393292573,1762427436682,500.0,0.00038696,120]
[393292574,1762427436809,500.0,0.00038696,120]
[393292575,1762427436918,517.73099188,0.00038696,120]
[393292576,1762427437055,503.64360254,0.00038696,120]
[393292579,1762427438425,-229.91740568,0.00016361,2]
[393292580,1762427438437,-5130.96526922,0.00016363,2]
[393292581,1762427439110,500.0,0.00038696,120]
[393292582,1762427439379,500.0,0.00038696,120]
[393292583,1762427439976,582.89208815,0.00038696,120]
[393292586,1762427440412,-292.00913934,0.00016361,2]
[393292587,1762427440465,-207.99086066,0.00016361,2]
[393292588,1762427440476,-500.0,0.00016361,2]
[393292589,1762427440487,-500.0,0.00016361,2]
[393292591,1762427440497,-500.0,0.00016361,2]
[393292592,1762427440507,-500.0,0.00016361,2]
[393292593,1762427440517,-500.0,0.00016361,2]
[393292594,1762427440527,-500.0,0.00016361,2]
[393292595,1762427440538,-500.0,0.00016361,2]
[393292596,1762427440548,-500.0,0.00016361,2]
[393292597,1762427440559,-500.0,0.00016361,2]
[393292598,1762427440569,-500.0,0.00016361,2]
[393292599,1762427440580,-500.0,0.00016361,2]
[393292600,1762427440590,-500.0,0.00016361,2]
[393292601,1762427440600,-500.0,0.00016361,2]
[393292602,1762427440610,-500.0,0.00016361,2]
[393292603,1762427440620,-500.0,0.00016361,2]
[393292604,1762427440630,-184.79721178,0.00016361,2]
[393292605,1762427440640,-500.0,0.00016361,2]
[393292606,1762427440650,-500.0,0.00016361,2]
[393292607,1762427440660,-56352.95134922,0.00016363,2]
[393292608,1762427440670,-500.0,0.00016373,2]
[393292609,1762427440680,-176.22,0.0001638,2]
[393292610,1762427440691,-500.0,0.000164,2]
[393292611,1762427440701,-500.0,0.000164,2]
[393292612,1762427440711,-500.0,0.000164,2]
[393292613,1762427440722,-2751.0,0.00016405,2]
[393292615,1762427440732,-205.81,0.00016416,2]
[393292616,1762427440742,-1250.68,0.00016436,2]
[393292618,1762427440752,-420.88810768,0.00016438,2]
[393292619,1762427440763,-260.10859733,0.0001646,2]
[393292620,1762427440773,-250.0,0.00016574,2]
[393292621,1762427440783,-260.10859733,0.0001664,2]
[393292622,1762427440794,-166.66,0.00016643,2]
[393292623,1762427440805,-500.0,0.00016676,2]
[393292625,1762427440814,-525.42297104,0.00016748,2]
[393292626,1762427440824,-260.10859733,0.0001682,2]
[393292627,1762427440834,-500.0,0.000169,2]
[393292628,1762427440844,-20575.1633213,0.00016909,2]
[393292629,1762427440854,-2000.0000004,0.00016909,2]
[393292630,1762427440864,-1000.0,0.00016921,2]
[393292631,1762427440875,-1000.0,0.00016948,2]
[393292632,1762427440885,-1000.0,0.00016948,2]
[393292633,1762427440895,-166.66,0.00016973,2]
[393292634,1762427440908,-250.0,0.00017,2]
[393292635,1762427440919,-260.10859733,0.00017,2]
[393292636,1762427440930,-2000.0,0.00017,2]
[393292637,1762427440941,-260.10859733,0.0001718,2]
[393292638,1762427440952,-300.0,0.00017236,2]
[393292639,1762427440962,-300.0,0.00017236,2]
[393292640,1762427440973,-300.0,0.00017236,2]
[393292641,1762427441265,-300.0,0.00017236,2]
[393292642,1762427441275,-300.0,0.00017236,2]
[393292643,1762427441285,-250.0,0.00017236,2]
[393292644,1762427441294,-166.66,0.00017302,2]
[393292645,1762427441303,-260.10859733,0.0001736,2]
[393292646,1762427441312,-504.0,0.00017397,2]
[393292647,1762427441321,-684.0,0.00017464,2]
[393292648,1762427441329,-1500.0,0.00017468,2]
[393292649,1762427441339,-477.87911524,0.00017486,2]
[393292650,1762427441349,-1500.0,0.00017496,2]
[393292651,1762427441358,-1079.35361335,0.00017496,2]
[393292652,1762427441368,-1188.0,0.0001751,2]
[393292653,1762427441378,-905.0,0.0001751,2]
[393292654,1762427441387,-168.0,0.00017533,2]
[393292655,1762427441397,-260.10859733,0.0001754,2]
[393292656,1762427441407,-168.0,0.00017578,2]
[393292657,1762427441416,-237.45497966,0.00017595,2]
[393292658,1762427441425,-221.80400124,0.00017607,2]
[393292659,1762427441434,-2645.0,0.00017652,2]
[393292660,1762427441443,-260.10859733,0.0001772,2]
[393292661,1762427441452,-1311.24,0.00017728,2]
[393292662,1762427441463,-1083.77,0.00017728,2]
[393292663,1762427441471,-893.73840764,0.00017749,2]
[393292664,1762427441481,-420.0,0.00017775,2]
[393292665,1762427441490,-168.0,0.00017779,2]
[393292666,1762427441499,-2645.0,0.00017787,2]
[393292667,1762427441508,-5000.0,0.000178,2]
[393292668,1762427441518,-607.91588386,0.000178,2]
[393292669,1762427441527,-227.58106581,0.000178,2]
[393292670,1762427441536,-607.9158838,0.00017811,2]
[393292671,1762427441546,-227.58106581,0.00017811,2]
[393292672,1762427441556,-4302.36532,0.0001782,2]
[393292673,1762427441565,-1223.18376974,0.0001782,2]
[393292674,1762427441574,-607.9158838,0.00017822,2]
[393292675,1762427441584,-227.58106581,0.00017822,2]
[393292676,1762427441594,-500.0,0.00017829,2]
[393292677,1762427441603,-150.0,0.00017833,2]
[393292678,1762427441612,-150.0,0.00017833,2]
[393292679,1762427441623,-150.0,0.00017833,2]
[393292680,1762427441632,-150.0,0.00017833,2]
[393292681,1762427441641,-150.0,0.00017833,2]
[393292682,1762427441650,-150.0,0.00017833,2]
[393292683,1762427441659,-150.0,0.00017833,2]
[393292684,1762427441668,-150.0,0.00017833,2]
[393292685,1762427441677,-150.0,0.00017833,2]
[393292686,1762427441687,-1315.0,0.00017833,2]
[393292687,1762427441697,-574.0,0.00017833,2]
[393292688,1762427441706,-3423.0,0.00017833,2]
[393292689,1762427441717,-1596.0,0.00017833,2]
[393292690,1762427441727,-820.0,0.00017833,2]
[393292691,1762427441736,-812.0,0.00017833,2]
[393292692,1762427441746,-1273.0,0.00017833,2]
[393292693,1762427441756,-607.9158838,0.00017833,2]
[393292694,1762427441766,-227.58106581,0.00017833,2]
[393292695,1762427441775,-2141.0,0.00017836,2]
[393292696,1762427441784,-6658.0,0.00017836,2]
[393292697,1762427441796,-559.0,0.00017836,2]
[393292698,1762427441806,-6475.0,0.00017836,2]
[393292699,1762427441815,-607.9158838,0.00017844,2]
[393292700,1762427441826,-227.58106581,0.00017844,2]
[393292701,1762427441835,-607.9158838,0.00017856,2]
[393292702,1762427441844,-227.58106581,0.00017856,2]
[393292703,1762427441854,-200.0,0.00017856,2]
[393292704,1762427441864,-1680.0,0.00017864,2]
[393292705,1762427441873,-607.9158838,0.00017867,2]
[393292706,1762427441883,-227.58106581,0.00017867,2]
[393292707,1762427441892,-459.61733602,0.00017873,2]
[393292708,1762427441902,-500.0,0.00017873,2]
[393292709,1762427441911,-500.0,0.00017873,2]
[393292710,1762427441920,-500.0,0.00017873,2]
[393292711,1762427441929,-500.0,0.00017873,2]
[393292712,1762427441954,-351.16553114,0.00017873,2]
[393292713,1762427441964,-500.0,0.00017873,2]
[393292714,1762427441974,-500.0,0.00017873,2]
[393292715,1762427441983,-607.9158838,0.00017878,2]
[393292716,1762427441993,-227.58106581,0.00017878,2]
[393292717,1762427442002,-607.9158838,0.00017889,2]
[393292718,1762427442012,-227.58106581,0.00017889,2]
[393292719,1762427442021,-1313.86,0.00017899,2]
[393292720,1762427442030,-1313.86,0.00017899,2]
[393292721,1762427442040,-500.0,0.00017899,2]
[393292722,1762427442049,-674.12,0.00017899,2]
[393292723,1762427442058,-674.12,0.00017899,2]
[393292724,1762427442067,-517.47400377,0.00017899,2]
[393292725,1762427442077,-500.0,0.00017899,2]
[393292726,1762427442087,-525.14,0.00017899,2]
[393292727,1762427442096,-525.14,0.00017899,2]
[393292728,1762427442106,-514.83814224,0.00017899,2]
[393292729,1762427442118,-500.0,0.00017899,2]
[393292730,1762427442127,-500.0,0.00017899,2]
[393292731,1762427442136,-500.0,0.00017899,2]
[393292732,1762427442148,-515.94292169,0.00017899,2]
[393292733,1762427442157,-500.0,0.00017899,2]
[393292734,1762427442166,-266.938,0.00017899,2]
[393292735,1762427442176,-500.0,0.00017899,2]
[393292736,1762427442186,-408.1311233,0.00017899,2]
[393292737,1762427442196,-500.0,0.00017899,2]
[393292738,1762427442205,-500.0,0.00017899,2]
[393292739,1762427442216,-593.28012558,0.00017899,2]
[393292740,1762427442225,-500.0,0.00017899,2]
[393292741,1762427442236,-500.0,0.00017899,2]
[393292742,1762427442247,-420000.0,0.000179,2]
[393292743,1762427442258,-607.9158838,0.000179,2]
[393292744,1762427442267,-227.58106581,0.000179,2]
[393292745,1762427442277,-260.10859733,0.000179,2]
[393292746,1762427442287,-4302.36532,0.0001793,2]
[393292747,1762427442296,-2645.0,0.00017935,2]
[393292748,1762427442306,-150.0,0.00017954,2]
[393292749,1762427442316,-500.0,0.00017954,2]
[393292750,1762427442326,-500.0,0.00017954,2]
[393292751,1762427442335,-150.0,0.00017954,2]
[393292752,1762427442345,-150.0,0.00017954,2]
[393292753,1762427442355,-150.0,0.00017954,2]
[393292754,1762427442365,-150.0,0.00017954,2]
[393292755,1762427442374,-500.0,0.00017954,2]
[393292756,1762427442383,-160.41796336,0.00017973,2]
[393292757,1762427442392,-500.0,0.00017973,2]
[393292758,1762427442402,-537.03503574,0.00017973,2]
[393292759,1762427442412,-500.0,0.00017973,2]
[393292760,1762427442421,-500.0,0.00017973,2]
[393292761,1762427442431,-500.0,0.00017973,2]
[393292762,1762427442440,-627.93010433,0.00017973,2]
[393292763,1762427442449,-500.0,0.00017973,2]
[393292764,1762427442459,-634.78303561,0.00017973,2]
[393292765,1762427442469,-501.40523433,0.00017973,2]
[393292766,1762427442478,-500.0,0.00017973,2]
[393292767,1762427442487,-500.0,0.00017973,2]
[393292768,1762427442497,-500.0,0.00017973,2]
[393292769,1762427442506,-500.0,0.00017973,2]
[393292770,1762427442515,-506.28852507,0.00017973,2]
[393292771,1762427442524,-360.49368471,0.00017989,2]
[393292772,1762427442533,-360.49368471,0.0001799,2]
[393292773,1762427442542,-360.49368471,0.0001799,2]
[393292774,1762427442551,-674.12,0.00017998,2]
[393292775,1762427442562,-525.14,0.00017998,2]
[393292776,1762427442571,-500.0,0.00017998,2]
[393292777,1762427442581,-500.0,0.00017998,2]
[393292778,1762427442590,-112551.8779437,0.00017999,2]
[393292779,1762427442599,-500.0,0.00017999,2]
[393292780,1762427442608,-500.0,0.00017999,2]
[393292781,1762427442618,-500.0,0.00017999,2]
[393292782,1762427442627,-500.0,0.00017999,2]
[393292783,1762427442636,-500.0,0.00017999,2]
[393292784,1762427442646,-500.0,0.00017999,2]
[393292785,1762427442656,-500.0,0.00017999,2]
[393292786,1762427442665,-500.0,0.00017999,2]
[393292787,1762427442674,-306.77088366,0.00017999,2]
[393292788,1762427442683,-40102.1948639,0.00017999,2]
[393292789,1762427442693,-500.0,0.00017999,2]
[393292790,1762427442702,-147175.4916731,0.00017999,2]
[393292791,1762427442711,-150.0,0.00017999,2]
[393292792,1762427442721,-3102.5150228,0.00017999,2]
[393292793,1762427442732,-1313.86,0.00017999,2]
[393292794,1762427442742,-1313.86,0.00017999,2]
[393292795,1762427442751,-1313.86,0.00017999,2]
[393292796,1762427442760,-1313.86,0.00017999,2]
[393292797,1762427442770,-1313.86,0.00017999,2]
[393292798,1762427442780,-1313.86,0.00017999,2]
[393292799,1762427442790,-1313.86,0.00017999,2]
[393292800,1762427442799,-1313.86,0.00017999,2]
[393292801,1762427442809,-1313.86,0.00017999,2]
[393292802,1762427442818,-1313.86,0.00017999,2]
[393292803,1762427442828,-1313.86,0.00017999,2]
[393292804,1762427442837,-1313.86,0.00017999,2]
[393292805,1762427442847,-1313.86,0.00017999,2]
[393292806,1762427442855,-1313.86,0.00017999,2]
[393292807,1762427442865,-1313.86,0.00017999,2]
[393292808,1762427442874,-1313.86,0.00017999,2]
[393292809,1762427442884,-1313.86,0.00017999,2]
[393292810,1762427442894,-1313.86,0.00017999,2]
[393292811,1762427442903,-1313.86,0.00017999,2]
[393292812,1762427442913,-1313.86,0.00017999,2]
[393292813,1762427442922,-1313.86,0.00017999,2]
[393292814,1762427442932,-1313.92,0.00017999,2]
[393292815,1762427442942,-674.12,0.00017999,2]
[393292816,1762427442951,-674.12,0.00017999,2]
[393292817,1762427442961,-674.12,0.00017999,2]
[393292818,1762427442970,-674.12,0.00017999,2]
[393292819,1762427442979,-674.12,0.00017999,2]
[393292820,1762427442988,-674.12,0.00017999,2]
[393292821,1762427442997,-674.12,0.00017999,2]
[393292822,1762427443007,-674.12,0.00017999,2]
[393292823,1762427443016,-674.12,0.00017999,2]
[393292824,1762427443025,-674.12,0.00017999,2]
[393292825,1762427443034,-674.12,0.00017999,2]
[393292826,1762427443043,-674.12,0.00017999,2]
[393292827,1762427443052,-674.12,0.00017999,2]
[393292828,1762427443062,-674.12,0.00017999,2]
[393292829,1762427443071,-674.12,0.00017999,2]
[393292830,1762427443080,-674.12,0.00017999,2]
[393292831,1762427443089,-674.12,0.00017999,2]
[393292832,1762427443098,-674.12,0.00017999,2]
[393292833,1762427443108,-674.12,0.00017999,2]
[393292834,1762427443117,-674.12,0.00017999,2]
[393292835,1762427443126,-674.24879056,0.00017999,2]
[393292836,1762427443136,-15711.9564036,0.00017999,2]
[393292837,1762427443146,-525.14,0.00017999,2]
[393292838,1762427443158,-525.14,0.00017999,2]
[393292839,1762427443167,-525.14,0.00017999,2]
[393292840,1762427443176,-525.14,0.00017999,2]
[393292842,1762427443187,-525.14,0.00017999,2]
[393292843,1762427443197,-525.14,0.00017999,2]
[393292844,1762427443206,-525.14,0.00017999,2]
[393292845,1762427443216,-525.14,0.00017999,2]
[393292846,1762427443227,-525.14,0.00017999,2]
[393292847,1762427443236,-525.14,0.00017999,2]
[393292848,1762427443245,-525.14,0.00017999,2]
[393292850,1762427443254,-525.14,0.00017999,2]
[393292851,1762427443263,-525.14,0.00017999,2]
[393292852,1762427443272,-525.14,0.00017999,2]
[393292853,1762427443282,-525.14,0.00017999,2]
[393292854,1762427443292,-525.14,0.00017999,2]
[393292855,1762427443302,-525.14,0.00017999,2]
[393292856,1762427443311,-525.14,0.00017999,2]
[393292857,1762427443320,-525.14,0.00017999,2]
[393292858,1762427443330,-525.14,0.00017999,2]
[393292859,1762427443340,-525.20319318,0.00017999,2]
[393292860,1762427443350,-434.57920695,0.00017999,2]
[393292861,1762427443360,-300.0,0.00017999,2]
[393292863,1762427443370,-666.0,0.00017999,2]
[393292866,1762427443380,-463213.4707649,0.00017999,2]
[393292868,1762427443390,-500.0,0.00017999,2]
[393292870,1762427443400,-500.0,0.00017999,2]
[393292872,1762427443409,-500.0,0.00017999,2]
[393292874,1762427443419,-500.0,0.00017999,2]
[393292875,1762427443429,-500.0,0.00017999,2]
[393292877,1762427443439,-500.0,0.00017999,2]
[393292878,1762427443449,-338.58569463,0.00017999,2]
[393292879,1762427443458,-300.0,0.00017999,2]
[393292880,1762427443468,-666.0,0.00017999,2]
[393292881,1762427443477,-500.0,0.00017999,2]
[393292882,1762427443486,-500.0,0.00017999,2]
[393292883,1762427443495,-500.0,0.00017999,2]
[393292884,1762427443504,-500.0,0.00017999,2]
[393292885,1762427443513,-500.0,0.00017999,2]
[393292886,1762427443524,-500.0,0.00017999,2]
[393292887,1762427443533,-500.0,0.00017999,2]
[393292888,1762427443543,-500.0,0.00017999,2]
[393292889,1762427443554,-500.0,0.00017999,2]
[393292890,1762427443563,-500.0,0.00017999,2]
[393292891,1762427443574,-500.0,0.00017999,2]
[393292892,1762427443584,-340.32,0.00017999,2]
[393292893,1762427443596,-2389.0,0.00018,2]
[393292894,1762427443605,-2890465.56234938,0.00018,2]
[393292899,1762427444200,-2198.61703984,0.00018,2]
[393292900,1762427444280,500.0,0.00038696,120]
[393292901,1762427444564,500.0,0.00038696,120]
[393292902,1762427444647,500.0,0.00038696,120]
[393292903,1762427444914,-500.0,0.00017954,2]
[393292904,1762427444925,-11097.70722955,0.00018,2]
[393292905,1762427444966,-497.42973401,0.00018,2]
[393292906,1762427445045,238.61297828,0.00038696,120]
[393292907,1762427445174,500.0,0.00038696,120]
[393292908,1762427445258,500.0,0.00038696,120]
[393292909,1762427445338,507.54615606,0.00038696,120]
[393292910,1762427445457,516.78122926,0.00038696,120]
[393292918,1762427446688,-286.93749869,0.00018,2]
[393292923,1762427447134,500.0,0.00038696,120]
[393292924,1762427447378,500.0,0.00038696,120]
[393292925,1762427447652,500.0,0.00038696,120]
[393292926,1762427448769,500.0,0.00038696,120]
[393292927,1762427449008,500.0,0.00038696,120]
[393292928,1762427449252,500.0,0.00038696,120]
[393292929,1762427449416,500.0,0.00038696,120]
[393292930,1762427449513,500.0,0.00038696,120]
[393292931,1762427449652,500.0,0.00038696,120]
[393292932,1762427449742,500.0,0.00038696,120]
[393292933,1762427449893,500.0,0.00038696,120]
[393292934,1762427449991,500.0,0.00038696,120]
[393292935,1762427450255,510.60673511,0.00038696,120]
[393292937,1762427452001,500.0,0.00038696,120]
[393292938,1762427452226,507.66020252,0.00038696,120]
[393292942,1762427453680,500.0,0.00038696,120]
[393292944,1762427454100,500.0,0.00038696,120]
[393292945,1762427454181,500.0,0.00038696,120]
[393292946,1762427454263,500.0,0.00038696,120]
[393292947,1762427454342,500.0,0.00038696,120]
[393292948,1762427454422,505.67165238,0.00038696,120]
[393292949,1762427454512,475.67606702,0.00038696,120]
[393292952,1762427457780,500.0,0.00038696,120]
[393292953,1762427457853,500.0,0.00038696,120]
[393292954,1762427458026,500.0,0.00038696,120]
[393292955,1762427458100,500.0,0.00038696,120]
[393292956,1762427458269,500.0,0.00038696,120]
[393292957,1762427458344,500.0,0.00038696,120]
[393292959,1762427458527,500.0,0.00038696,120]
[393292960,1762427458809,500.0,0.00038696,120]
[393292961,1762427459045,500.0,0.00038696,120]
[393292962,1762427459281,500.0,0.00038696,120]
[393292963,1762427459549,500.0,0.00038696,120]
[393292964,1762427459814,513.6780048,0.00038696,120]
[393292965,1762427460089,500.0,0.00038696,120]
[393292966,1762427460348,500.0,0.00038696,120]
[393292967,1762427460584,260.01038758,0.00038696,120]
[393292968,1762427461684,500.0,0.00038696,120]
[393292969,1762427461922,263.81411416,0.00038696,120]
[393292970,1762427462446,500.0,0.00038696,120]
[393292971,1762427462674,500.0,0.00038696,120]
[393292972,1762427462915,500.0,0.00038696,120]
[393292973,1762427463001,200.0,0.00038696,30]
[393292974,1762427463150,500.0,0.00038696,120]
[393292975,1762427463418,500.0,0.00038696,120]
[393292976,1762427463654,500.0,0.00038696,120]
[393292979,1762427463890,500.0,0.00038696,120]
[393292980,1762427464339,500.0,0.00038696,120]
[393292981,1762427464451,500.0,0.00038696,120]
[393292982,1762427464968,165.88570081,0.00038696,120]
[393292985,1762427467315,500.0,0.00038696,120]
[393292986,1762427467557,500.0,0.00038696,120]
[393292987,1762427467894,500.0,0.00038696,120]
[393292988,1762427468136,500.0,0.00038696,120]
[393292989,1762427468399,500.0,0.00038696,120]
[393292990,1762427468643,500.0,0.00038696,120]
[393292991,1762427468893,557.79507993,0.00038696,120]
[393292993,1762427470107,500.0,0.00038696,120]
[393292994,1762427470214,506.03733701,0.00038696,120]
[393292995,1762427470365,500.0,0.00038696,120]
[393292996,1762427470603,500.0,0.00038696,120]
[393292997,1762427470788,500.0,0.00038696,120]
[393292998,1762427470863,228.74295746,0.00038696,120]
[393292999,1762427471036,500.0,0.00038696,120]
[393293000,1762427471286,500.0,0.00038696,120]
[393293001,1762427471630,500.0,0.00038696,120]
[393293002,1762427471701,500.0,0.00038696,30]
[393293003,1762427471868,500.0,0.00038696,120]
[393293004,1762427471947,500.0,0.00038696,30]
[393293005,1762427472123,500.0,0.00038696,120]
[393293006,1762427472199,500.0,0.00038696,30]
[393293007,1762427472278,502.10103614,0.00038696,120]
[393293008,1762427472362,500.0,0.00038696,120]
[393293009,1762427472436,500.0,0.00038696,30]
[393293010,1762427472597,500.0,0.00038696,120]
[393293011,1762427472672,528.92267908,0.00038696,30]
[393293012,1762427472840,500.0,0.00038696,120]
[393293014,1762427473135,500.0,0.00038696,120]
[393293015,1762427473375,500.0,0.00038696,120]
[393293016,1762427473609,285.10125547,0.00038696,120]
[393293020,1762427477126,500.0,0.00038696,120]
[393293022,1762427477246,500.0,0.00038696,120]
[393293023,1762427477322,500.0,0.00038696,120]
[393293024,1762427477400,500.0,0.00038696,120]
[393293025,1762427477488,500.0,0.00038696,120]
[393293026,1762427477563,500.0,0.00038696,120]
[393293027,1762427477641,500.0,0.00038696,120]
[393293028,1762427477730,500.0,0.00038696,120]
[393293029,1762427477806,500.0,0.00038696,120]
[393293030,1762427477881,500.0,0.00038696,120]
[393293032,1762427477966,500.0,0.00038696,120]
[393293033,1762427478036,500.0,0.00038696,120]
[393293034,1762427478114,500.0,0.00038696,120]
[393293035,1762427478226,500.0,0.00038696,120]
[393293036,1762427478320,500.0,0.00038696,120]
[393293037,1762427478395,500.0,0.00038696,120]
[393293038,1762427478473,500.0,0.00038696,120]
[393293039,1762427478559,500.0,0.00038696,120]
[393293040,1762427478627,500.0,0.00038696,120]
[393293041,1762427478697,500.0,0.00038696,120]
[393293042,1762427478793,500.0,0.00038696,120]
[393293043,1762427478866,500.0,0.00038696,120]
[393293044,1762427478943,500.0,0.00038696,120]
[393293045,1762427479029,500.0,0.00038696,120]
[393293046,1762427479103,500.0,0.00038696,120]
[393293047,1762427479183,500.0,0.00038696,120]
[393293048,1762427479321,500.0,0.00038696,120]
[393293049,1762427479396,500.0,0.00038696,120]
[393293051,1762427479598,500.0,0.00038696,120]
[393293053,1762427479854,500.0,0.00038696,120]
[393293054,1762427480100,500.0,0.00038696,120]
[393293055,1762427480328,500.89930784,0.00038696,120]
[393293058,1762427482187,500.0,0.00038696,120]
[393293060,1762427482420,500.0,0.00038696,120]
[393293061,1762427482656,500.0,0.00038696,120]
[393293062,1762427482923,500.0,0.00038696,120]
[393293064,1762427483479,500.0,0.00038696,120]
[393293065,1762427483565,500.0,0.00038696,120]
[393293066,1762427483645,300.0,0.00038696,30]
[393293067,1762427483747,500.0,0.00038696,120]
[393293068,1762427484021,500.0,0.00038696,120]
[393293069,1762427484218,311.1,0.00038696,30]
[393293070,1762427484310,500.0,0.00038696,120]
[393293071,1762427484734,500.0,0.00038696,120]
[393293072,1762427484818,500.0,0.00038696,120]
[393293074,1762427484899,311.1,0.00038696,30]
[393293075,1762427485019,210.70555891,0.00038696,120]
[393293076,1762427486922,545.56,0.00038696,120]